Cogmind - Beta 14 @@@ ROGUE MODE // 2024.08.12 @ 12:54:24 Player: APerTAS Result: Destroyed by G-47 Trooper with Particle Gun Performance ------------- Evolutions (2) 1000 Regions Visited (4) 800 Robots Destroyed (11) 55 Value Destroyed (596) 596 Prototype IDs (4) 80 Alien Tech Used (0) 0 Bonus (200) 200 TOTAL SCORE: 2731 Bonus ------- Entered Garrisons 200 Cogmind --------- Core Integrity 0/550 Matter 275/300 Energy 98/100 System Corruption 0% Temperature Cool (9) Movement Core (50) Location -8/Garrison Parts ------- > --- POWER (1) -------- (None) > --- PROPULSION (2) --- (None) > --- UTILITY (2) ------ (None) > --- WEAPON (6) ------- (None) > --- INVENTORY (5) ---- Improved Signal Interpreter Layered Light Armor Plating Layered Light Armor Plating Peak State ------------ > --- POWER ------------ Light Nuclear Core > --- PROPULSION ------- Armored Treads Advanced Treads > --- UTILITY ---------- Improved Heat Sink Layered Light Armor Plating > --- WEAPON ----------- Heavy Particle Cannon Heavy Particle Cannon High-powered Shotgun Scythe > --- INVENTORY -------- Improved Signal Interpreter Layered Light Armor Plating Layered Light Armor Plating Heavy Particle Cannon Rocket Launcher [Rating: 29] Favorites ----------- Power Light Nuclear Core Engine Improved Ion Engine Power Core Light Nuclear Core Propulsion Advanced Treads Treads Advanced Treads Utility Improved Heat Sink Device Improved Heat Sink Processor Improved Signal Interpreter Protection Layered Light Armor Plating Weapon Heavy Particle Cannon Energy Cannon Heavy Particle Cannon Ballistic Gun High-powered Shotgun Launcher Rocket Launcher Slashing Weapon Scythe Build | -11 -10 -9 -8 -8 ------- Run | Yrd Mat Mat Mat Gar Slots Evolved 4 | . . 2 2 . Power . | . . . . . Propulsion . | . . . . . Utility . | . . . . . Weapon 4 | . . 2 2 . Parts Attached 23 | . 1 8 11 3 Power 2 | . . . 2 . Engine 1 | . . . 1 . Core 1 | . . . 1 . Reactor . | . . . . . Propulsion 2 | . . . 2 . Treads 2 | . . . 2 . Leg . | . . . . . Wheel . | . . . . . Hover . | . . . . . Flight . | . . . . . Utility 5 | . 1 . 3 1 Device 2 | . . . 1 1 Storage . | . . . . . Processor 1 | . . . 1 . Hackware . | . . . . . Protection 2 | . 1 . 1 . Artifact . | . . . . . Weapon 14 | . . 8 4 2 Energy Gun . | . . . . . Energy Cannon 3 | . . . 2 1 Ballistic Gun 1 | . . . 1 . Ballistic Cannon . | . . . . . Launcher 9 | . . 8 . 1 Special Weapon . | . . . . . Impact Weapon . | . . . . . Slashing Weapon 1 | . . . 1 . Piercing Weapon . | . . . . . Special Melee Weapon . | . . . . . Unidentified Prototypes . | . . . . . Parts Lost 12 | . . 8 3 1 Power 2 | . . . 2 . Propulsion 1 | . . . 1 . Utility 1 | . . 1 . . Weapon 8 | . . 7 . 1 Highest Loss Streak 4 | . . 4 3 1 To Critical Strikes . | . . . . . Average Slot Usage (%) 48 | . 9 28 67 5 Core 3 | . . . 5 . Treads 10 | . . . 16 . Device 5 | . . . 8 . Processor 1 | . . . 3 . Protection 4 | . 9 1 5 . Energy Cannon 10 | . . . 16 4 Ballistic Gun 2 | . . . 4 . Launcher 4 | . . 26 . . Slashing Weapon 4 | . . . 7 . Peak Build Rating 29 | . 1 8 29 7 Average Rating 15 | . . 5 23 2 On Entrance . | . . 1 . 1 Naked Turns 206 | . 48 50 42 66 Heaviest Build 29 | . 3 16 29 7 Greatest Support 42 | 3 3 3 42 3 Greatest Overweight (x) 5 | . . 5 1 2 Average Overweight (x) . | . . 1 . . Largest Inventory Capacity 5 | 5 5 5 5 5 Average Capacity 5 | 5 5 5 5 5 Most Carried 5 | . . 2 5 5 Average Carried 3 | . . . 4 3 Final Capacity 5 | 5 5 5 5 5 Final Carried 5 | . . 1 5 3 Class Distribution -------------------- 58% | Mutant 29% | Tank 11% | Bomber Dominant Class ---------------- Mutant | -10/Materials Bomber | -9/Materials Mutant | -8/Materials Mutant | -8/Garrison Resources | -11 -10 -9 -8 -8 ----------- Run | Yrd Mat Mat Mat Gar Matter Collected 349 | 44 30 75 200 . Remotely . | . . . . . Salvage Created 444 | . 90 40 264 50 Parts 27 | . 6 2 17 2 Haulers Intercepted 1 | . 1 . . . Recyclers Shooed 1 | . 1 . . . Parts Field Recycled . | . . . . . Retrieved Matter . | . . . . . Parts Self-Destructed . | . . . . . Prevented . | . . . . . Kills | -11 -10 -9 -8 -8 ------- Run | Yrd Mat Mat Mat Gar Combat Hostiles Destroyed 8 | . . 2 5 1 Melee 1 | . . . 1 . Guns 2 | . . . 2 . Cannons 3 | . . . 2 1 AOE 2 | . . 2 . . Classes Destroyed 7 | . 2 1 4 . Worker 1 | . . . 1 . Builder 1 | . 1 . . . Hauler 1 | . 1 . . . Grunt 3 | . . . 2 1 Duelist 1 | . . . 1 . Sentry 3 | . . 2 1 . Hunter 1 | . . . 1 . Best Kill Streak 3 | . 1 2 3 1 Combat Bots Only 3 | . . 2 3 1 Max Kills in Single Turn 2 | . 1 1 2 1 Gunslinging . | . . . . . Exploded 1 | . . 1 . . Melee 1 | . . . 1 . Uniques/NPCs Destroyed . | . . . . . Combat | -11 -10 -9 -8 -8 -------- Run | Yrd Mat Mat Mat Gar Hostile Shots Fired 176 | . 1 38 92 45 Missed 40 | . . 13 15 12 Damage Taken 2823 | . 96 986 1267 474 Core 979 | . 48 376 227 328 Absorbed by Shields 30 | . . . . 30 Core Remaining (%) 62 | 100 80 6 . . Volleys Fired 24 | . . 4 10 10 Largest 4 | . . 4 3 1 Hottest 175 | . . 132 175 75 Shots Fired 45 | . . 10 25 10 Gun 5 | . . . 5 . Cannon 30 | . . . 20 10 Launcher 10 | . . 10 . . Special . | . . . . . Kinetic 5 | . . . 5 . Thermal 30 | . . . 20 10 Explosive 10 | . . 10 . . Electromagnetic . | . . . . . Robot Hit Streak 7 | . . 5 7 5 Robot Miss Streak 4 | . . 1 4 1 Penetration Max . | . . . . . Secondary Targets . | . . . . . Shots Hit Robots 36 | . . 6 23 7 Core Hits 24 | . 7 5 10 2 Critical Kills . | . . . . . Critical Parts Destroyed . | . . . . . Critical Strikes 2 | . . . 2 . Sever 2 | . . . 2 . Melee Attacks 9 | . . . 9 . Impact . | . . . . . Slashing 9 | . . . 9 . Piercing . | . . . . . Sneak Attacks . | . . . . . Combat Hostiles . | . . . . . Follow-up Attacks . | . . . . . Damage Inflicted 1136 | . 178 161 622 175 Guns 105 | . . . 105 . Cannons 475 | . . . 300 175 Explosions 161 | . . 161 . . Melee 216 | . . . 216 . Ramming 179 | . 178 . 1 . Kinetic 105 | . . . 105 . Thermal 475 | . . . 300 175 Explosive 161 | . . 161 . . Electromagnetic . | . . . . . Impact . | . . . . . Slashing 216 | . . . 216 . Piercing . | . . . . . Highest Corruption 7 | . 1 7 . . Average Corruption 1 | . 1 7 . . Corruption Purged . | . . . . . Corruption Blocked . | . . . . . Effects 1 | . 1 . . . Matter Fused 1 | . 1 . . . Overload Shots . | . . . . . Overflow Damage 39 | . 1 25 13 . Projectiles 13 | . . . 13 . Explosions 25 | . . 25 . . Melee 1 | . 1 . . . Knockbacks . | . . . . . Impact . | . . . . . Kinetic . | . . . . . Secondary . | . . . . . Self-Inflicted Damage 370 | . 77 293 . . Shots 8 | . . 8 . . Rammed 57 | . 56 . 1 . Targets Rammed 57 | . 56 . 1 . Kicked . | . . . . . Crushed . | . . . . . Highest Temperature 425 | . . 48 425 186 Average Temperature 112 | . . 31 151 75 Received Heat Transfer 1259 | . 6 144 747 362 Effects 1 | . . . 1 . Shutdowns 1 | . . . 1 . Siege Activations . | . . . . . Robots Corrupted 1 | . 1 . . . Combat Hostiles . | . . . . . Parts Fried . | . . . . . Impact Corruptions 2 | . 2 . . . Robots Melted . | . . . . . Combat Hostiles . | . . . . . Parts Melted 1 | . . . . 1 Heat Transferred 703 | . . . 444 259 Parts Sabotaged . | . . . . . Parts Stolen . | . . . . . Parts Stripped . | . . . . . Power Chain Reactions . | . . . . . Alert | -11 -10 -9 -8 -8 ------- Run | Yrd Mat Mat Mat Gar Peak Influence 194 | . 57 168 194 152 Initial 55 | . . 24 55 37 Average 79 | . 24 122 71 135 Maximum Alert Level . | . . . . . Low Security (%) 100 | 100 100 100 100 100 Level 1 . | . . . . . Level 2 . | . . . . . Level 3 . | . . . . . Level 4 . | . . . . . Level 5 . | . . . . . High Security . | . . . . . Max Security . | . . . . . Squads Dispatched 5 | . 1 3 1 . Investigation 2 | . 1 1 . . Extermination . | . . . . . Reinforcement 2 | . . 2 . . Assault . | . . . . . Garrison 1 | . . . 1 . Intercept . | . . . . . Searches Triggered . | . . . . . Construction Impeded . | . . . . . Haulers Reinforced . | . . . . . Active Scanning Responses . | . . . . . Cargo Convoy Interrupts . | . . . . . Stealth | -11 -10 -9 -8 -8 --------- Run | Yrd Mat Mat Mat Gar Distress Signals 3 | . . 2 1 . Communications Jammed . | . . . . . Distress Signals . | . . . . . Times Spotted 33 | . 4 4 19 6 Peak Tracking Total 9 | . 3 3 9 5 Tactical Retreats 1 | . . 1 . . Traps | -11 -10 -9 -8 -8 ------- Run | Yrd Mat Mat Mat Gar Traps Triggered 3 | . 1 . . 2 Indirectly . | . . . . . Trap Hack Attempts . | . . . . . Triggered . | . . . . . Disarmed . | . . . . . Reprogrammed . | . . . . . Reused . | . . . . . Traps Extracted . | . . . . . Installed . | . . . . . Triggered . | . . . . . Machines | -11 -10 -9 -8 -8 ---------- Run | Yrd Mat Mat Mat Gar Machines Disabled 2 | . . 1 . 1 Max in Single Turn 1 | . . 1 . 1 Garrison Relay 1 | . . . . 1 Machines Repaired . | . . . . . Machines Dismantled . | . . . . . Machines Sabotaged . | . . . . . Overloaded Fab Kills . | . . . . . Hacking | -11 -10 -9 -8 -8 --------- Run | Yrd Mat Mat Mat Gar Machines Accessed 10 | . 3 1 5 1 Terminals 8 | . 2 1 4 1 Fabricators . | . . . . . Repair Stations . | . . . . . Recycling Units 1 | . 1 . . . Scanalyzers . | . . . . . Garrison Access 1 | . . . 1 . Total Hacks 28 | . 9 2 14 3 Successful 7 | . . . 7 . Failed 21 | . 9 2 7 3 Catastrophic 4 | . 1 1 1 1 Database Lockouts . | . . . . . Manual 20 | . 9 2 9 . Terminals 24 | . 6 2 13 3 Fabricators . | . . . . . Repair Stations . | . . . . . Recycling Units 3 | . 3 . . . Scanalyzers . | . . . . . Garrison Access 1 | . . . 1 . Terminal Hacks 2 | . . . 2 . Prototype ID Bank 2 | . . . 2 . Fabricator Hacks . | . . . . . Repair Station Hacks . | . . . . . Recycling Unit Hacks . | . . . . . Scanalyzer . | . . . . . Garrison Access Hacks 1 | . . . 1 . Unlock Access 1 | . . . 1 . Unauthorized Hacks 4 | . . . 4 . Terminals 4 | . . . 4 . Track 1 | . . . 1 . Assimilate 1 | . . . 1 . Botnet 2 | . . . 2 . Fabricators . | . . . . . Repair Stations . | . . . . . Recycling Units . | . . . . . Scanalyzers . | . . . . . Garrison Access . | . . . . . Data Cores Recovered . | . . . . . Used . | . . . . . Hacking Detections 8 | . 3 1 3 1 Full Trace Events 5 | . 3 1 . 1 Feedback Events . | . . . . . Feedback Blocked . | . . . . . Robot Schematics Acquired . | . . . . . Robots Built . | . . . . . Authchips . | . . . . . Time . | . . . . . Total Robot Build Rating . | . . . . . Part Schematics Acquired . | . . . . . Parts Built . | . . . . . Authchips . | . . . . . Time . | . . . . . Total Part Build Rating . | . . . . . Parts Repaired . | . . . . . Time . | . . . . . Parts Recycled . | . . . . . Recycled Matter . | . . . . . Retrieved Matter . | . . . . . Retrieved Components . | . . . . . Parts Scanalyzed . | . . . . . Part Schematics Acquired . | . . . . . Parts Damaged . | . . . . . Bothacking | -11 -10 -9 -8 -8 ------------ Run | Yrd Mat Mat Mat Gar Used RIF Installer . | . . . . . Robots Hacked . | . . . . . Non-combat . | . . . . . Combat . | . . . . . Robot Hacks Applied . | . . . . . Relay Couplers Released 5 | . . . . 5 Machine Destruction 5 | . . . . 5 Fabnet Peak Effective % . | . . . . . Robots Rewired . | . . . . . Allies Hacked . | . . . . . Hacks Repelled . | . . . . . Allies | -11 -10 -9 -8 -8 -------- Run | Yrd Mat Mat Mat Gar Total Allies 1 | . . . 1 . Largest Group 1 | . . . 1 . Highest-Rated Group 10 | . . . 10 . Highest-Rated Ally 10 | . . . 10 . Total Orders . | . . . . . Ally Attacks . | . . . . . Total Damage . | . . . . . Kills . | . . . . . Allies Corrupted . | . . . . . Allies Melted . | . . . . . Intel | -11 -10 -9 -8 -8 ------- Run | Yrd Mat Mat Mat Gar Robot Analysis Total . | . . . . . Derelict Logs Recovered . | . . . . . Drone Launches . | . . . . . Drone Recoveries . | . . . . . Exploration | -11 -10 -9 -8 -8 ------------- Run | Yrd Mat Mat Mat Gar Turns Passed 1416 | 11 162 249 871 123 Spaces Moved 918 | 23 209 212 361 113 Core 638 | 23 209 212 81 113 Treads 280 | . . . 280 . Legs . | . . . . . Wheels . | . . . . . Hover . | . . . . . Flight . | . . . . . Fastest Speed 50 | 50 50 50 50 50 Average Speed 96 | 50 50 105 132 58 Slowest Speed 300 | 50 50 300 250 150 Overloaded Moves . | . . . . . Propulsion Burnouts . | . . . . . Robots Hopped . | . . . . . Cave-ins Triggered 1 | . . 1 . . Exploration Rate (%) 29 | 4 48 24 36 34 Regions Visited 4 Branch Regions . Pre-discovered Areas . | . . . . . Known Exits Taken 1 | . . . 1 . Unknown Exits Taken 3 | 1 1 1 . . Scrap Searched . | . . . . . Spaces Dug . | . . . . . Terrain Destroyed 79 | . . 75 4 . Melee . | . . . . . Projectile 4 | . . . 4 . AOE 75 | . . 75 . . Terrain Rammed . | . . . . . Walls Destroyed . | . . . . . Machines Disabled . | . . . . . Actions | -11 -10 -9 -8 -8 --------- Run | Yrd Mat Mat Mat Gar Total 1384 | 22 265 225 713 159 Wait 322 | . . . 314 8 Move 915 | 22 208 211 361 113 Hop . | . . . . . Pick Up 7 | . . 2 5 . Fast Attach 18 | . 1 5 11 1 Attach 4 | . . 2 . 2 Detach . | . . . . . Swap 1 | . . 1 . . Drop 2 | . . . 2 . Fire 24 | . . 4 10 10 Melee 9 | . . . 9 . Ram 57 | . 56 . 1 . Kick . | . . . . . Crush . | . . . . . Escape Stasis 25 | . . . . 25 Rewire . | . . . . . Trap . | . . . . . Miscellaneous . | . . . . . Route ------- -11/Scrapyard -10/Materials -9/Materials -8/Materials -8/Garrison History --------- Turn | Location | Event 3 | -11/Scrapyard | Discovered new exit (range 15) 12 | -11/Scrapyard | Entered Materials 172 | -10/Materials | Discovered new exit (range 5) 174 | -10/Materials | Entered another Materials area 174 | -9/Materials | Evolved 2 slots: Weapon x2 261 | -9/Materials | Core integrity fell below 50% 291 | -9/Materials | Lost 3 parts (3w) 397 | -9/Materials | Crushed by falling debris 397 | -9/Materials | Core integrity fell below 20% 417 | -9/Materials | Discovered new exit (range 12) 423 | -9/Materials | Entered another Materials area 423 | -8/Materials | Evolved 2 slots: Weapon x2 440 | -8/Materials | Lost 4 parts (4w) 709 | -8/Materials | Build established: Mutant 1130 | -8/Materials | Build established: Tank 1222 | -8/Materials | Garrison activated, responded to threat 1274 | -8/Materials | Released all parts (7) 1294 | -8/Materials | Identified exit to Garrison 1294 | -8/Materials | Entered Garrison 1301 | -8/Garrison | Lost 3 parts (2p1n) 1319 | -8/Garrison | Garrison Relay disabled 1326 | -8/Garrison | Core integrity fell below 50% 1354 | -8/Garrison | Triggered checkpoint 1372 | -8/Garrison | Released all parts (2) 1374 | -8/Garrison | Core integrity fell below 20% 1386 | -8/Garrison | Triggered checkpoint 1417 | -8/Garrison | Destroyed by G-47 Trooper with Particle Gun Last Messages --------------- 01376_ Stasis field depleted. 01385_ Triggered Stasis Trap. 01385_ A bubble of rippling energy engulfs the area. 01385_ Field strength at 94. 01385_ Field strength at 88. 01386_ Beams of light sweep through the air. An alarm sounds. 01386_ Field strength at 82. 01387_ Field strength at 76. 01388_ Field strength at 70. 01389_ Field strength at 64. 01390_ Field strength at 58. 01391_ Field strength at 52. 01392_ Field strength at 46. 01393_ Field strength at 40. 01394_ Field strength at 34. 01395_ Field strength at 28. 01396_ Field strength at 22. 01397_ Field strength at 16. 01398_ Field strength at 10. 01399_ Stasis field depleted. Map ----- +----------------------------------------------------+ | ??????????????????????????# #??????????????????? | | ??????????????????????????# #??????????????????? | | ??????????????????????????# #??????????????????? | | ??????????????????????????# #############""""### | | ??????????????????????????# | | ??????????????????????????# | | ??????????????????????????# | | ??????????????????????????############ ## ## | | ???????????????????????????????????### ## ## | | ???????????????????????????????????# | | ???????????????????????????????????# | | ???????????????????????????????????# | | ???????????????????????????????????# | | ???????????????????????????????????### ## ## | | ???????????????????????############### ## #?? | | ???????????????????????# | | ???????????????????????# | | ???????????????????????# | | ???????????????????????# #### ###########""""## | | ???????????????????????# #??# #????????????????? | | ???????????????????????# #??# #????????????????? | | ???????????????????????# #??# #????????????????? | | ???????????????????????# #??# #????????????????? | | ??????????????????###### #### #????????????????? | | ????????????????# b #????????????????? | | ????????????????# ######g@g######????????????????? | | ???????????????????????# #?????????????????????? | | ???????????????????????# #?????????????????????? | | ???????????????????????# #?????????????????????? | | ???????????????????????# #?????????????????????? | | ???????????????????????# T?????????????????????? | | ???????????????????????# #?????????????????????? | | ???????????????????????# #?????????????????????? | | ???????????????????????# #?????????????????????? | | ???????????????????????# #?????????????????????? | | ???????????????????????# #?????????????????????? | | ???????????????????????# #?????????????????????? | | ???????????????????????# #?????????????????????? | | ???????????????????????# ??????????????????????? | | ???????????????????????? ??????????????????????? | | ???????????????????????? ??????????????????????? | | ?????????????????????????????????????????????????? | | ?????????????????????????????????????????????????? | | ?????????????????????????????????????????????????? | | ?????????????????????????????????????????????????? | | ?????????????????????????????????????????????????? | | ?????????????????????????????????????????????????? | | ?????????????????????????????????????????????????? | | ?????????????????????????????????????????????????? | | ?????????????????????????????????????????????????? | +----------------------------------------------------+ Best States ------------- Heat Dissipation 45 Energy Generation 14 Energy Capacity 265 Matter Stores 300 Matter Capacity 300 Sight Range 16 Terrain Scan Density 10 Armor Coverage 150 Evasion (%) 50 Recoil Reduction 2 Item Schematics ----------------- None Robot Schematics ------------------ None Fabricated ------------ Nothing Alien Tech Used ----------------- None Achievements -------------- None Challenges ------------ None Game ------ Seed EnhancedTerrainRigger Manual? 0 Play Time 00:13:00 Cumulative 20.7 hours Start 2024.08.12 @ 12:42:54 End 2024.08.12 @ 12:54:24 Sessions 1 Manual Loads 0 Difficulty Rogue Special Mode None Game No. 97 Rogue 97 Adventurer 0 Explorer 0 Win Type - Total 0 Types 0/0/0/0/0/0/0/0/0 Lore% 32 Gallery% 24 Achievement% 32 Wizard Run 0 Options --------- Layout 0 ASCII 0 Keyboard 0 Movement Arrows Keybinds 0 Fullscreen 2 Font 18/Terminus Map View 76x50 Zoom Use 0% Tactical HUD 1 Map Filters NONE Filters NONE Steam 1 RUN: 9a34d755-20f2-430e-ab87-084afd252205